[Event "Live Chess"]
[Site "Chess.com"]
[Date "2023.05.21"]
[Round "-"]
[White "CheckThis4"]
[Black "Jonmill"]
[Result "1-0"]
[WhiteElo "2492"]
[BlackElo "1236"]
[TimeControl "300"]
[EndTime "22:24:47 PDT"]
[Termination "CheckThis4 won by resignation"]

1. d4 {[%clk 0:04:58]} 1... Nf6 {[%clk 0:04:58.9]} 2. Nc3 {[%clk 0:04:57.1]}
2... g6 {[%clk 0:04:57.3]} 3. e4 {[%clk 0:04:56.1]} 3... d6 {[%clk 0:04:56.3]}
4. Be3 {[%clk 0:04:54.3]} 4... Bg7 {[%clk 0:04:51.5]} 5. Qd2 {[%clk 0:04:53.7]}
5... Nbd7 {[%clk 0:04:45.7]} 6. Bh6 {[%clk 0:04:52.5]} 6... Bxh6 {[%clk
0:04:35.5]} 7. Qxh6 {[%clk 0:04:50.1]} 7... Rg8 {[%clk 0:04:32.6]} 8. Nf3 {[%clk
0:04:43.4]} 8... c6 {[%clk 0:04:22.2]} 9. O-O-O {[%clk 0:04:40.8]} 9... Qb6
{[%clk 0:04:14.7]} 10. h3 {[%clk 0:04:39]} 10... Nf8 {[%clk 0:04:11.8]} 11. Bc4
{[%clk 0:04:35.9]} 11... Be6 {[%clk 0:04:01.2]} 12. d5 {[%clk 0:04:31.2]} 12...
cxd5 {[%clk 0:03:59.7]} 13. exd5 {[%clk 0:04:29.3]} 13... Bf5 {[%clk 0:03:53.1]}
14. g4 {[%clk 0:04:27.8]} 14... Qxf2 {[%clk 0:03:36.4]} 15. Rhf1 {[%clk
0:04:22.6]} 15... Qb6 {[%clk 0:03:33.5]} 16. gxf5 {[%clk 0:04:19.5]} 16... Nh5
{[%clk 0:03:22.4]} 17. Bb5+ {[%clk 0:04:15.8]} 17... Kd8 {[%clk 0:03:20.7]} 18.
fxg6 {[%clk 0:04:10]} 18... fxg6 {[%clk 0:03:14.4]} 19. Nd4 {[%clk 0:04:04.8]}
19... a6 {[%clk 0:03:08.9]} 20. Rxf8+ {[%clk 0:03:58.9]} 1-0

[Event "Live Chess"]
[Site "Chess.com"]
[Date "2023.05.21"]
[Round "-"]
[White "Ocelot32"]
[Black "BillythekidFellowes"]
[Result "0-1"]
[WhiteElo "1347"]
[BlackElo "2031"]
[TimeControl "300"]
[EndTime "22:24:47 PDT"]
[Termination "BillythekidFellowes won by resignation"]

1. e4 {[%clk 0:04:56.9]} 1... e6 {[%clk 0:04:59.9]} 2. d4 {[%clk 0:04:53.9]}
2... d5 {[%clk 0:04:59.2]} 3. exd5 {[%clk 0:04:50.7]} 3... exd5 {[%clk
0:04:59.1]} 4. Bd3 {[%clk 0:04:48.7]} 4... Nf6 {[%clk 0:04:58]} 5. h3 {[%clk
0:04:47.1]} 5... Bd6 {[%clk 0:04:57.5]} 6. Nf3 {[%clk 0:04:46.4]} 6... O-O
{[%clk 0:04:56.6]} 7. O-O {[%clk 0:04:45.6]} 7... c6 {[%clk 0:04:55.5]} 8. c3
{[%clk 0:04:44.4]} 8... Ne4 {[%clk 0:04:54.4]} 9. Nbd2 {[%clk 0:04:40.7]} 9...
f5 {[%clk 0:04:53.4]} 10. Re1 {[%clk 0:04:35.6]} 10... Qf6 {[%clk 0:04:50.6]}
11. Nf1 {[%clk 0:04:31.7]} 11... Nd7 {[%clk 0:04:45.5]} 12. Be3 {[%clk
0:04:22.2]} 12... Nb6 {[%clk 0:04:41.6]} 13. Qc1 {[%clk 0:04:21.4]} 13... f4
{[%clk 0:04:38.8]} 14. Bd2 {[%clk 0:04:16.6]} 14... Qg6 {[%clk 0:04:37.2]} 15.
Bxe4 {[%clk 0:04:11.8]} 15... dxe4 {[%clk 0:04:37.1]} 16. N3h2 {[%clk
0:04:08.3]} 16... Bxh3 {[%clk 0:04:35.5]} 0-1

[Event "Live Chess"]
[Site "Chess.com"]
[Date "2023.05.21"]
[Round "-"]
[White "Nazarenko_vital"]
[Black "raminguy"]
[Result "1-0"]
[WhiteElo "1637"]
[BlackElo "1954"]
[TimeControl "300"]
[EndTime "22:25:13 PDT"]
[Termination "Nazarenko_vital won by resignation"]

1. e4 {[%clk 0:04:58.1]} 1... e5 {[%clk 0:04:58.9]} 2. Nf3 {[%clk 0:04:55.4]}
2... Nc6 {[%clk 0:04:58.2]} 3. d4 {[%clk 0:04:54.3]} 3... exd4 {[%clk
0:04:57.2]} 4. Nxd4 {[%clk 0:04:53.3]} 4... Qf6 {[%clk 0:04:55.7]} 5. Be3 {[%clk
0:04:48.4]} 5... Bc5 {[%clk 0:04:53.7]} 6. c3 {[%clk 0:04:44.9]} 6... Nge7
{[%clk 0:04:52.4]} 7. Be2 {[%clk 0:04:12.1]} 7... O-O {[%clk 0:04:49.2]} 8. O-O
{[%clk 0:04:06.8]} 8... d6 {[%clk 0:04:46.5]} 9. Nd2 {[%clk 0:03:57.3]} 9... a6
{[%clk 0:04:43.4]} 10. Nxc6 {[%clk 0:03:52.1]} 10... Nxc6 {[%clk 0:04:41.9]} 11.
Bxc5 {[%clk 0:03:49.5]} 11... dxc5 {[%clk 0:04:41.8]} 12. f4 {[%clk 0:03:46.5]}
12... Rd8 {[%clk 0:04:38.3]} 13. Qe1 {[%clk 0:03:43.4]} 13... Re8 {[%clk
0:04:30.4]} 14. Qf2 {[%clk 0:03:40]} 14... b6 {[%clk 0:04:26.5]} 15. e5 {[%clk
0:03:37.2]} 15... Qh6 {[%clk 0:04:20.2]} 16. Ne4 {[%clk 0:03:17.1]} 16... Bf5
{[%clk 0:04:13.9]} 17. Ng5 {[%clk 0:03:11.7]} 17... Nxe5 {[%clk 0:04:02.2]} 18.
fxe5 {[%clk 0:03:06.3]} 18... Qxg5 {[%clk 0:03:53.3]} 19. Qxf5 {[%clk
0:03:02.9]} 19... Qe3+ {[%clk 0:03:50.3]} 20. Rf2 {[%clk 0:02:59.1]} 20... Rxe5
{[%clk 0:03:40.7]} 21. Qxf7+ {[%clk 0:02:55.3]} 21... Kh8 {[%clk 0:03:39.5]} 22.
Rf1 {[%clk 0:02:49.3]} 22... h6 {[%clk 0:03:26.4]} 23. Bg4 {[%clk 0:02:39.3]}
23... Rd8 {[%clk 0:03:02.1]} 24. h3 {[%clk 0:02:13.6]} 24... Re7 {[%clk
0:02:36.6]} 25. Qf5 {[%clk 0:02:10]} 25... Ree8 {[%clk 0:02:21]} 26. Kh1 {[%clk
0:01:50.2]} 26... b5 {[%clk 0:01:48]} 27. Bd1 {[%clk 0:01:35.8]} 27... Qe4
{[%clk 0:00:49.2]} 28. Qxe4 {[%clk 0:01:20.9]} 28... Rxe4 {[%clk 0:00:47.3]} 29.
Rf8+ {[%clk 0:01:20]} 1-0

[Event "Live Chess"]
[Site "Chess.com"]
[Date "2023.05.21"]
[Round "-"]
[White "ExIsambard"]
[Black "profpirate4"]
[Result "1-0"]
[WhiteElo "1921"]
[BlackElo "1146"]
[TimeControl "300"]
[EndTime "22:25:17 PDT"]
[Termination "ExIsambard won by resignation"]

1. d4 {[%clk 0:04:58.1]} 1... f5 {[%clk 0:04:58.7]} 2. Nf3 {[%clk 0:04:56.9]}
2... e6 {[%clk 0:04:57.9]} 3. Bg5 {[%clk 0:04:56]} 3... Be7 {[%clk 0:04:54.9]}
4. h4 {[%clk 0:04:54.6]} 4... Nf6 {[%clk 0:04:53.7]} 5. e3 {[%clk 0:04:53.5]}
5... O-O {[%clk 0:04:52.9]} 6. Bd3 {[%clk 0:04:52.6]} 6... d6 {[%clk 0:04:49.3]}
7. c4 {[%clk 0:04:51.8]} 7... Nc6 {[%clk 0:04:47.7]} 8. Nbd2 {[%clk 0:04:49.5]}
8... Ne4 {[%clk 0:04:37.6]} 9. a3 {[%clk 0:04:46.8]} 9... e5 {[%clk 0:04:32.5]}
10. Nxe4 {[%clk 0:04:30.9]} 10... fxe4 {[%clk 0:04:24.1]} 11. Bxe4 {[%clk
0:04:29.9]} 11... Bg4 {[%clk 0:04:03.5]} 12. d5 {[%clk 0:04:08.4]} 12... Na5
{[%clk 0:03:56.6]} 13. Qc2 {[%clk 0:04:06.4]} 13... Bxf3 {[%clk 0:03:48.7]} 14.
gxf3 {[%clk 0:03:57.1]} 14... b5 {[%clk 0:03:21.2]} 15. Bxh7+ {[%clk 0:03:53.1]}
15... Kh8 {[%clk 0:03:18.1]} 16. cxb5 {[%clk 0:03:37.5]} 16... Rb8 {[%clk
0:03:04.1]} 17. b4 {[%clk 0:03:29.7]} 17... Nb7 {[%clk 0:03:02.5]} 18. Qg6
{[%clk 0:03:19]} 18... Rxf3 {[%clk 0:02:44.5]} 19. Qh5 {[%clk 0:03:16.7]} 1-0

[Event "Live Chess"]
[Site "Chess.com"]
[Date "2023.05.21"]
[Round "-"]
[White "Hacker_2009"]
[Black "Jo1ts"]
[Result "1-0"]
[WhiteElo "1934"]
[BlackElo "830"]
[TimeControl "300"]
[EndTime "22:25:41 PDT"]
[Termination "Hacker_2009 won by checkmate"]

1. d4 {[%clk 0:04:58.5]} 1... d5 {[%clk 0:04:58.3]} 2. Nf3 {[%clk 0:04:57.2]}
2... Nf6 {[%clk 0:04:53.5]} 3. e3 {[%clk 0:04:53.3]} 3... Nc6 {[%clk 0:04:50.6]}
4. c4 {[%clk 0:04:52.2]} 4... Bf5 {[%clk 0:04:34.8]} 5. Nc3 {[%clk 0:04:47.7]}
5... e6 {[%clk 0:04:32.9]} 6. a3 {[%clk 0:04:45.9]} 6... Be7 {[%clk 0:04:22.9]}
7. Be2 {[%clk 0:04:40.9]} 7... O-O {[%clk 0:04:20.9]} 8. O-O {[%clk 0:04:39.9]}
8... Ne4 {[%clk 0:04:14.7]} 9. Nxe4 {[%clk 0:04:31.1]} 9... Bxe4 {[%clk
0:04:11.5]} 10. Nd2 {[%clk 0:04:28.9]} 10... Bf5 {[%clk 0:03:58.9]} 11. b4
{[%clk 0:04:21.3]} 11... e5 {[%clk 0:03:46.9]} 12. cxd5 {[%clk 0:04:17.2]} 12...
Qxd5 {[%clk 0:03:35.8]} 13. Bf3 {[%clk 0:04:16]} 13... Qe6 {[%clk 0:03:30.6]}
14. d5 {[%clk 0:04:14.4]} 14... Qg6 {[%clk 0:03:19.8]} 15. dxc6 {[%clk
0:04:12.3]} 15... bxc6 {[%clk 0:03:18]} 16. Bb2 {[%clk 0:04:09.9]} 16... e4
{[%clk 0:03:08.8]} 17. Be2 {[%clk 0:04:04.4]} 17... Bh3 {[%clk 0:03:05.5]} 18.
g3 {[%clk 0:04:03.4]} 18... Rad8 {[%clk 0:02:51.1]} 19. Qc2 {[%clk 0:04:01.3]}
19... Rd5 {[%clk 0:02:36.2]} 20. Rfd1 {[%clk 0:03:49.2]} 20... Rfd8 {[%clk
0:02:31.6]} 21. Nxe4 {[%clk 0:03:41.3]} 21... Qf5 {[%clk 0:02:20.1]} 22. Rxd5
{[%clk 0:03:30.9]} 22... Rxd5 {[%clk 0:02:20]} 23. Rd1 {[%clk 0:03:20.9]} 23...
h6 {[%clk 0:01:53.1]} 24. Qc3 {[%clk 0:03:13.7]} 24... Rxd1+ {[%clk 0:01:36.7]}
25. Bxd1 {[%clk 0:03:10.6]} 25... Bf6 {[%clk 0:01:34]} 26. Nxf6+ {[%clk
0:03:08.7]} 26... gxf6 {[%clk 0:01:33.1]} 27. Qxf6 {[%clk 0:03:07.3]} 27... Qh7
{[%clk 0:01:19.2]} 28. Qd8# {[%clk 0:03:03.4]} 1-0

[Event "Live Chess"]
[Site "Chess.com"]
[Date "2023.05.21"]
[Round "-"]
[White "tpm07"]
[Black "Singapourfeuj"]
[Result "0-1"]
[WhiteElo "1928"]
[BlackElo "2200"]
[TimeControl "300"]
[EndTime "22:25:47 PDT"]
[Termination "Singapourfeuj won by resignation"]

1. d4 {[%clk 0:04:56.9]} 1... Nf6 {[%clk 0:04:58.6]} 2. c4 {[%clk 0:04:54.5]}
2... g6 {[%clk 0:04:57.5]} 3. g3 {[%clk 0:04:48.8]} 3... Bg7 {[%clk 0:04:56.5]}
4. Bg2 {[%clk 0:04:48.4]} 4... O-O {[%clk 0:04:54.7]} 5. Nc3 {[%clk 0:04:43.4]}
5... d6 {[%clk 0:04:53.8]} 6. e4 {[%clk 0:04:41.5]} 6... e5 {[%clk 0:04:51.1]}
7. Nf3 {[%clk 0:04:40.4]} 7... Nbd7 {[%clk 0:04:49.4]} 8. O-O {[%clk 0:04:39.4]}
8... exd4 {[%clk 0:04:48.4]} 9. Nxd4 {[%clk 0:04:37.9]} 9... Re8 {[%clk
0:04:47.8]} 10. f4 {[%clk 0:04:19.4]} 10... a6 {[%clk 0:04:42.5]} 11. Be3 {[%clk
0:04:16.2]} 11... Nc5 {[%clk 0:04:40.8]} 12. e5 {[%clk 0:04:07.1]} 12... dxe5
{[%clk 0:04:39.6]} 13. fxe5 {[%clk 0:04:06.5]} 13... Rxe5 {[%clk 0:04:37.9]} 14.
Bf4 {[%clk 0:04:00.3]} 14... Re8 {[%clk 0:04:35.7]} 15. Bg5 {[%clk 0:03:50.8]}
15... h6 {[%clk 0:04:34.6]} 16. Bxf6 {[%clk 0:03:43]} 16... Bxf6 {[%clk
0:04:33.6]} 17. Nd5 {[%clk 0:03:42.1]} 17... Bg7 {[%clk 0:04:31.6]} 18. Rc1
{[%clk 0:03:31.2]} 18... c6 {[%clk 0:04:30.1]} 0-1

[Event "Live Chess"]
[Site "Chess.com"]
[Date "2023.05.21"]
[Round "-"]
[White "chessfiction"]
[Black "RockTroll"]
[Result "1-0"]
[WhiteElo "2344"]
[BlackElo "2235"]
[TimeControl "300"]
[EndTime "22:26:32 PDT"]
[Termination "chessfiction won - game abandoned"]

1. e4 {[%clk 0:04:59.1]} 1... d5 {[%clk 0:04:58.5]} 2. d4 {[%clk 0:04:58.4]}
2... dxe4 {[%clk 0:04:57.2]} 3. f3 {[%clk 0:04:58.3]} 3... e5 {[%clk 0:04:55]}
4. c3 {[%clk 0:04:57]} 4... exd4 {[%clk 0:04:53.6]} 5. cxd4 {[%clk 0:04:56.9]}
5... exf3 {[%clk 0:04:51.6]} 6. Nxf3 {[%clk 0:04:56.8]} 6... Bb4+ {[%clk
0:04:49.2]} 7. Nc3 {[%clk 0:04:55.5]} 7... Nf6 {[%clk 0:04:45.9]} 8. Bc4 {[%clk
0:04:53.2]} 8... Qe7+ {[%clk 0:04:41]} 9. Ne5 {[%clk 0:04:51.7]} 9... O-O {[%clk
0:04:34.9]} 10. O-O {[%clk 0:04:50.3]} 10... Nbd7 {[%clk 0:04:30.3]} 11. Bg5
{[%clk 0:04:43.8]} 11... Nxe5 {[%clk 0:04:28.1]} 12. dxe5 {[%clk 0:04:42.8]}
12... Qxe5 {[%clk 0:04:19.1]} 13. Bxf6 {[%clk 0:04:41.5]} 13... gxf6 {[%clk
0:04:18.6]} 14. Nd5 {[%clk 0:04:40.2]} 14... Bc5+ {[%clk 0:04:16.6]} 15. Kh1
{[%clk 0:04:38.8]} 15... f5 {[%clk 0:04:01.3]} 16. Re1 {[%clk 0:04:24.2]} 1-0

[Event "Live Chess"]
[Site "Chess.com"]
[Date "2023.05.21"]
[Round "-"]
[White "Jonmill"]
[Black "raminguy"]
[Result "0-1"]
[WhiteElo "1236"]
[BlackElo "1954"]
[TimeControl "300"]
[EndTime "22:26:41 PDT"]
[Termination "raminguy won by resignation"]

1. e4 {[%clk 0:04:58.3]} 1... e5 {[%clk 0:04:59]} 2. Nc3 {[%clk 0:04:57]} 2...
Nc6 {[%clk 0:04:58.4]} 3. Bc4 {[%clk 0:04:55.6]} 3... Nf6 {[%clk 0:04:57.6]} 4.
d3 {[%clk 0:04:54.7]} 4... Na5 {[%clk 0:04:57]} 5. Bb3 {[%clk 0:04:47.8]} 5...
Nxb3 {[%clk 0:04:55.5]} 6. axb3 {[%clk 0:04:47.1]} 6... Bc5 {[%clk 0:04:55]} 7.
f4 {[%clk 0:04:41.3]} 7... d6 {[%clk 0:04:53.6]} 8. Nf3 {[%clk 0:04:39.8]} 8...
Bg4 {[%clk 0:04:51.8]} 9. h3 {[%clk 0:04:39.1]} 9... Bxf3 {[%clk 0:04:49.9]} 10.
Qxf3 {[%clk 0:04:37.1]} 10... O-O {[%clk 0:04:49.8]} 11. fxe5 {[%clk 0:04:30.6]}
11... dxe5 {[%clk 0:04:48]} 12. Bg5 {[%clk 0:04:27.4]} 12... Be7 {[%clk
0:04:46.6]} 13. Nd5 {[%clk 0:04:11.5]} 13... Nxd5 {[%clk 0:04:45]} 0-1

[Event "Live Chess"]
[Site "Chess.com"]
[Date "2023.05.21"]
[Round "-"]
[White "Doge_Dandolo"]
[Black "Ocelot32"]
[Result "1-0"]
[WhiteElo "1898"]
[BlackElo "1346"]
[TimeControl "300"]
[EndTime "22:26:48 PDT"]
[Termination "Doge_Dandolo won by resignation"]

1. Nf3 {[%clk 0:04:49.2]} 1... d5 {[%clk 0:04:58.4]} 2. c4 {[%clk 0:04:44.5]}
2... c6 {[%clk 0:04:56.4]} 3. g3 {[%clk 0:04:40.6]} 3... Nf6 {[%clk 0:04:54.5]}
4. Bg2 {[%clk 0:04:38.1]} 4... Bf5 {[%clk 0:04:53.1]} 5. d3 {[%clk 0:04:36.3]}
5... e6 {[%clk 0:04:50.1]} 6. Qb3 {[%clk 0:04:33.9]} 6... Qc7 {[%clk 0:04:43.3]}
7. Bf4 {[%clk 0:04:30.8]} 7... Bd6 {[%clk 0:04:38.8]} 8. Bxd6 {[%clk 0:04:29.1]}
8... Qxd6 {[%clk 0:04:38]} 9. Qxb7 {[%clk 0:04:27.4]} 9... O-O {[%clk
0:04:26.7]} 10. Qxa8 {[%clk 0:04:25.9]} 10... Qb4+ {[%clk 0:04:25.8]} 11. Nbd2
{[%clk 0:04:24.2]} 11... Qxb2 {[%clk 0:04:20.3]} 12. O-O {[%clk 0:04:21.5]}
12... Qb6 {[%clk 0:04:11.3]} 13. Rfb1 {[%clk 0:04:13.5]} 13... Qa6 {[%clk
0:04:08.5]} 14. Qb7 {[%clk 0:04:10.4]} 1-0

[Event "Live Chess"]
[Site "Chess.com"]
[Date "2023.05.21"]
[Round "-"]
[White "Nazar_777"]
[Black "seabuck"]
[Result "0-1"]
[WhiteElo "1617"]
[BlackElo "1889"]
[TimeControl "300"]
[EndTime "22:26:57 PDT"]
[Termination "seabuck won by checkmate"]

1. e3 {[%clk 0:04:51.2]} 1... d5 {[%clk 0:04:56.6]} 2. h4 {[%clk 0:04:50.3]}
2... c5 {[%clk 0:04:54.8]} 3. a3 {[%clk 0:04:49.7]} 3... Nc6 {[%clk 0:04:53.8]}
4. c4 {[%clk 0:04:49]} 4... Nf6 {[%clk 0:04:46.6]} 5. cxd5 {[%clk 0:04:47.9]}
5... Nxd5 {[%clk 0:04:44.2]} 6. Nc3 {[%clk 0:04:47.2]} 6... Bf5 {[%clk
0:04:31.7]} 7. Nf3 {[%clk 0:04:44.9]} 7... Nxc3 {[%clk 0:04:22.1]} 8. bxc3
{[%clk 0:04:43.4]} 8... e6 {[%clk 0:04:13.5]} 9. Qb3 {[%clk 0:04:38.4]} 9... Qc7
{[%clk 0:04:06.4]} 10. Ng5 {[%clk 0:04:36.1]} 10... h6 {[%clk 0:03:49.2]} 11.
Nf3 {[%clk 0:04:34.5]} 11... Be7 {[%clk 0:03:45.1]} 12. Bb2 {[%clk 0:04:33.7]}
12... O-O {[%clk 0:03:42.7]} 13. Ke2 {[%clk 0:04:32.3]} 13... Rfd8 {[%clk
0:03:38]} 14. Ke1 {[%clk 0:04:31.1]} 14... Na5 {[%clk 0:03:32]} 15. Qd1 {[%clk
0:04:28.5]} 15... c4 {[%clk 0:03:22.9]} 16. Nd4 {[%clk 0:04:18.9]} 16... Bg6
{[%clk 0:03:08.1]} 17. Qc1 {[%clk 0:04:15]} 17... e5 {[%clk 0:02:57.9]} 18. Nf3
{[%clk 0:04:12.6]} 18... Nb3 {[%clk 0:02:53.2]} 19. Qb1 {[%clk 0:04:11.1]} 19...
Nxa1 {[%clk 0:02:52.1]} 20. Qxa1 {[%clk 0:04:09.9]} 20... b5 {[%clk 0:02:46]}
21. g3 {[%clk 0:04:03.3]} 21... Be4 {[%clk 0:02:41.2]} 22. Bg2 {[%clk
0:04:01.7]} 22... Qb7 {[%clk 0:02:34.6]} 23. Qd1 {[%clk 0:03:59.6]} 23... Rd7
{[%clk 0:02:21.7]} 24. Rg1 {[%clk 0:03:57.9]} 24... Rad8 {[%clk 0:02:19.5]} 25.
Bc1 {[%clk 0:03:51.9]} 25... f6 {[%clk 0:02:07.6]} 26. Qe2 {[%clk 0:03:50.1]}
26... a5 {[%clk 0:01:57.9]} 27. Qf1 {[%clk 0:03:48.1]} 27... Bd3 {[%clk
0:01:55.5]} 28. Nh2 {[%clk 0:03:37.9]} 28... Qb6 {[%clk 0:01:46.6]} 29. Bd5+
{[%clk 0:03:26.6]} 29... Rxd5 {[%clk 0:01:44.9]} 30. Qg2 {[%clk 0:03:24.4]}
30... b4 {[%clk 0:01:39.2]} 31. axb4 {[%clk 0:03:18.1]} 31... axb4 {[%clk
0:01:37.6]} 32. cxb4 {[%clk 0:03:15.1]} 32... Bxb4 {[%clk 0:01:30.5]} 33. g4
{[%clk 0:03:12.4]} 33... c3 {[%clk 0:01:22.9]} 34. f4 {[%clk 0:03:02.1]} 34...
cxd2+ {[%clk 0:01:20.7]} 35. Bxd2 {[%clk 0:03:00.9]} 35... Bxd2+ {[%clk
0:01:19.7]} 36. Kxd2 {[%clk 0:02:54.3]} 36... Qb2+ {[%clk 0:01:16.6]} 37. Ke1
{[%clk 0:02:53]} 37... Qxg2 {[%clk 0:01:12.6]} 38. Rxg2 {[%clk 0:02:52]} 38...
Be4 {[%clk 0:01:12.3]} 39. Rb2 {[%clk 0:02:41.6]} 39... Rd1+ {[%clk 0:01:08.9]}
40. Kf2 {[%clk 0:02:39.8]} 40... R8d2+ {[%clk 0:01:07.1]} 41. Kg3 {[%clk
0:02:38]} 41... Rg1+ {[%clk 0:00:59.9]} 42. Kh3 {[%clk 0:02:31.3]} 42... Rxb2
{[%clk 0:00:58.1]} 43. g5 {[%clk 0:02:29.3]} 43... Bf5+ {[%clk 0:00:56.4]} 44.
Ng4 {[%clk 0:02:26]} 44... Bxg4# {[%clk 0:00:54.9]} 0-1

[Event "Live Chess"]
[Site "Chess.com"]
[Date "2023.05.21"]
[Round "-"]
[White "Conradical12"]
[Black "Grookey2012"]
[Result "1-0"]
[WhiteElo "1638"]
[BlackElo "563"]
[TimeControl "300"]
[EndTime "22:27:12 PDT"]
[Termination "Conradical12 won by resignation"]

1. e4 {[%clk 0:04:58.4]} 1... d5 {[%clk 0:04:57.2]} 2. exd5 {[%clk 0:04:57.2]}
2... Qxd5 {[%clk 0:04:56]} 3. Nc3 {[%clk 0:04:56.9]} 3... Qe6+ {[%clk
0:04:54.6]} 4. Be2 {[%clk 0:04:52.9]} 4... Nf6 {[%clk 0:04:51.6]} 5. Nf3 {[%clk
0:04:50.1]} 5... h6 {[%clk 0:04:47.7]} 6. Nb5 {[%clk 0:04:48.2]} 6... Na6 {[%clk
0:04:36.3]} 7. Nc3 {[%clk 0:04:46.5]} 7... Bd7 {[%clk 0:04:10.9]} 8. O-O {[%clk
0:04:34.9]} 8... O-O-O {[%clk 0:04:02]} 9. Nd4 {[%clk 0:04:26.3]} 9... Qd6
{[%clk 0:03:40.8]} 10. Ncb5 {[%clk 0:04:12.8]} 10... Bxb5 {[%clk 0:03:37.9]} 11.
Nxb5 {[%clk 0:04:10.1]} 11... Qb6 {[%clk 0:03:28.8]} 12. d4 {[%clk 0:04:03.4]}
12... Kb8 {[%clk 0:03:22.7]} 13. Be3 {[%clk 0:03:58.1]} 13... c6 {[%clk
0:03:20.1]} 14. d5 {[%clk 0:03:53.4]} 14... Qa5 {[%clk 0:03:06]} 15. Bf4+ {[%clk
0:03:41.4]} 15... e5 {[%clk 0:02:57.9]} 16. Bxe5+ {[%clk 0:03:39.8]} 16... Bd6
{[%clk 0:02:57.8]} 17. Bxd6+ {[%clk 0:03:37.7]} 17... Ka8 {[%clk 0:02:50.6]} 1-0

[Event "Live Chess"]
[Site "Chess.com"]
[Date "2023.05.21"]
[Round "-"]
[White "Long1968"]
[Black "Rusty_Bridges"]
[Result "0-1"]
[WhiteElo "1051"]
[BlackElo "1441"]
[TimeControl "300"]
[EndTime "22:27:32 PDT"]
[Termination "Rusty_Bridges won on time"]

1. e4 {[%clk 0:04:58.1]} 1... d6 {[%clk 0:04:57.5]} 2. d4 {[%clk 0:04:54.3]}
2... Nf6 {[%clk 0:04:55.9]} 3. Nc3 {[%clk 0:04:51.7]} 3... Nbd7 {[%clk
0:04:53.3]} 4. Bc4 {[%clk 0:04:45]} 4... e5 {[%clk 0:04:49.7]} 5. Nf3 {[%clk
0:04:39.6]} 5... h6 {[%clk 0:04:46]} 6. O-O {[%clk 0:04:35]} 6... c6 {[%clk
0:04:42.4]} 7. a4 {[%clk 0:04:27.4]} 7... Qc7 {[%clk 0:04:40]} 8. Be3 {[%clk
0:04:03.1]} 8... Be7 {[%clk 0:04:37.2]} 9. Qd3 {[%clk 0:03:36.5]} 9... g5 {[%clk
0:04:28.1]} 10. Rfd1 {[%clk 0:03:25.1]} 10... Nf8 {[%clk 0:04:25.4]} 11. b4
{[%clk 0:03:14.2]} 11... Ng6 {[%clk 0:04:23.1]} 12. b5 {[%clk 0:02:59.3]} 12...
Nf4 {[%clk 0:04:20.7]} 13. Bxf4 {[%clk 0:02:54.9]} 13... gxf4 {[%clk 0:04:19.7]}
14. d5 {[%clk 0:02:22.7]} 14... c5 {[%clk 0:04:16.8]} 15. Rab1 {[%clk
0:01:21.2]} 15... Bg4 {[%clk 0:04:11.4]} 16. Rd2 {[%clk 0:01:07.9]} 16... b6
{[%clk 0:04:02.8]} 17. h3 {[%clk 0:00:49.9]} 17... Bh5 {[%clk 0:03:56.2]} 18.
Nh4 {[%clk 0:00:41.2]} 18... Bg6 {[%clk 0:03:49.3]} 19. Nf5 {[%clk 0:00:33.4]}
19... Bxf5 {[%clk 0:03:46.9]} 20. exf5 {[%clk 0:00:30.1]} 20... Kd7 {[%clk
0:03:23.2]} 21. Ne4 {[%clk 0:00:23.4]} 21... Nxe4 {[%clk 0:03:20.9]} 22. Qxe4
{[%clk 0:00:19.8]} 22... Bf6 {[%clk 0:03:08.6]} 23. Re1 {[%clk 0:00:05.4]} 23...
Rag8 {[%clk 0:03:06]} 0-1

[Event "Live Chess"]
[Site "Chess.com"]
[Date "2023.05.21"]
[Round "-"]
[White "Singapourfeuj"]
[Black "Jo1ts"]
[Result "1-0"]
[WhiteElo "2200"]
[BlackElo "830"]
[TimeControl "300"]
[EndTime "22:27:37 PDT"]
[Termination "Singapourfeuj won by resignation"]

1. d4 {[%clk 0:04:50.8]} 1... d5 {[%clk 0:04:57.7]} 2. c4 {[%clk 0:04:49.9]}
2... Nf6 {[%clk 0:04:54.2]} 3. cxd5 {[%clk 0:04:46.7]} 3... Nxd5 {[%clk
0:04:52.6]} 4. e4 {[%clk 0:04:45.7]} 4... Nb6 {[%clk 0:04:45]} 5. Nc3 {[%clk
0:04:43]} 5... e6 {[%clk 0:04:35.7]} 6. Be3 {[%clk 0:04:41.7]} 6... Nc6 {[%clk
0:04:27.7]} 7. Nf3 {[%clk 0:04:39.6]} 7... Bb4 {[%clk 0:04:20.5]} 8. Be2 {[%clk
0:04:35]} 8... O-O {[%clk 0:04:10.4]} 9. O-O {[%clk 0:04:33.8]} 9... Nc4 {[%clk
0:04:04.6]} 10. Bxc4 {[%clk 0:04:32.3]} 10... Na5 {[%clk 0:03:59.8]} 11. Be2
{[%clk 0:04:30.6]} 1-0